[Event "Titled Tuesday Blitz July 18 Early 2023"]
[White "Ionescu, Mihai"]
[Black "Shapiro, Daniel"]
[WhiteFideId "1202499"]
[BlackFideId "2001780"]
[WhiteElo "2551"]
[BlackElo "2316"]
[Result "1/2-1/2"]
[Round "3"]
[TimeControl "180+2"]
[Date "2023.07.18"]
[WhiteClock "0:00:05"]
[BlackClock "0:00:31"]
[Board "136"]

1. Nf3 {[%clk 0:03:00]}  Nf6 {[%clk 0:02:56]} 2. c4 {[%clk 0:02:59]}  Nc6 {[%clk 0:02:52]} 3. g3 {[%clk 0:02:58]}  e5 {[%clk 0:02:51]} 4. d3 {[%clk 0:02:57]}  d5 {[%clk 0:02:51]} 5. cxd5 {[%clk 0:02:57]}  Nxd5 {[%clk 0:02:52]} 6. Bg2 {[%clk 0:02:57]}  Be7 {[%clk 0:02:47]} 7. Nc3 {[%clk 0:02:54]}  Nb6 {[%clk 0:02:45]} 8. O-O {[%clk 0:02:49]}  O-O {[%clk 0:02:45]} 9. Be3 {[%clk 0:02:47]}  Be6 {[%clk 0:02:43]} 10. d4 {[%clk 0:02:44]}  exd4 {[%clk 0:02:25]} 11. Nxd4 {[%clk 0:02:42]}  Nxd4 {[%clk 0:02:25]} 12. Bxd4 {[%clk 0:02:37]}  c6 {[%clk 0:02:25]} 13. b3 {[%clk 0:02:30]}  Bf6 {[%clk 0:02:24]} 14. Bxf6 {[%clk 0:02:25]}  Qxf6 {[%clk 0:02:25]} 15. Ne4 {[%clk 0:02:25]}  Qe7 {[%clk 0:02:21]} 16. Qd6 {[%clk 0:02:04]}  Rfe8 {[%clk 0:02:16]} 17. Rfd1 {[%clk 0:01:59]}  Bd5 {[%clk 0:02:15]} 18. Qxe7 {[%clk 0:01:45]}  Rxe7 {[%clk 0:02:16]} 19. Nc3 {[%clk 0:01:46]}  Bxg2 {[%clk 0:02:10]} 20. Kxg2 {[%clk 0:01:46]}  Kf8 {[%clk 0:01:58]} 21. Rd4 {[%clk 0:01:39]}  Rd7 {[%clk 0:01:57]} 22. Rad1 {[%clk 0:01:37]}  Rad8 {[%clk 0:01:56]} 23. Rxd7 {[%clk 0:01:34]}  Rxd7 {[%clk 0:01:56]} 24. Rxd7 {[%clk 0:01:29]}  Nxd7 {[%clk 0:01:56]} 25. Kf3 {[%clk 0:01:30]}  Ke7 {[%clk 0:01:54]} 26. Ke4 {[%clk 0:01:26]}  g6 {[%clk 0:01:46]} 27. e3 {[%clk 0:01:20]}  b5 {[%clk 0:01:34]} 28. Kd4 {[%clk 0:01:16]}  f5 {[%clk 0:01:31]} 29. b4 {[%clk 0:01:05]}  Kd6 {[%clk 0:01:28]} 30. e4 {[%clk 0:00:59]}  a6 {[%clk 0:01:28]} 31. exf5 {[%clk 0:00:53]}  gxf5 {[%clk 0:01:29]} 32. h3 {[%clk 0:00:16]}  c5+ {[%clk 0:01:22]} 33. bxc5+ {[%clk 0:00:17]}  Nxc5 {[%clk 0:01:22]} 34. g4 {[%clk 0:00:16]}  Ne6+ {[%clk 0:01:14]} 35. Ke3 {[%clk 0:00:15]}  fxg4 {[%clk 0:01:12]} 36. hxg4 {[%clk 0:00:15]}  Ke5 {[%clk 0:01:12]} 37. Ne2 {[%clk 0:00:14]}  a5 {[%clk 0:01:05]} 38. f4+ {[%clk 0:00:14]}  Kd5 {[%clk 0:01:03]} 39. f5 {[%clk 0:00:14]}  Nd8 {[%clk 0:00:50]} 40. g5 {[%clk 0:00:11]}  Ke5 {[%clk 0:00:48]} 41. Nd4 {[%clk 0:00:02]}  b4 {[%clk 0:00:45]} 42. f6 {[%clk 0:00:02]}  Nf7 {[%clk 0:00:40]} 43. Nc6+ {[%clk 0:00:02]}  Kf5 {[%clk 0:00:39]} 44. Nxa5 {[%clk 0:00:02]}  Kxg5 {[%clk 0:00:39]} 45. Nc6 {[%clk 0:00:03]}  Kxf6 {[%clk 0:00:39]} 46. Nxb4 {[%clk 0:00:03]}  Ke6 {[%clk 0:00:38]} 47. a4 {[%clk 0:00:03]}  Kd6 {[%clk 0:00:38]} 48. Nd3 {[%clk 0:00:04]}  Kc6 {[%clk 0:00:36]} 49. Kf4 {[%clk 0:00:05]}  Kb6 {[%clk 0:00:36]} 50. Kf5 {[%clk 0:00:05]}  Ka5 {[%clk 0:00:36]} 51. Kf6 {[%clk 0:00:06]}  Kxa4 {[%clk 0:00:34]} 52. Kxf7 {[%clk 0:00:06]}  Kb3 {[%clk 0:00:33]} 53. Kg7 {[%clk 0:00:05]}  h5 {[%clk 0:00:32]} 54. Nf4 {[%clk 0:00:04]}  h4 {[%clk 0:00:32]} 55. Kg6 {[%clk 0:00:05]}  Kc4 {[%clk 0:00:31]} 56. Kg5 {[%clk 0:00:05]}  Kd4 {[%clk 0:00:31]} 57. Kxh4 {[%clk 0:00:05]} 1/2-1/2


[Site "https://www.chess.com"]

[Event "Titled Tuesday Blitz July 18 Early 2023"]
[White "Martin, Lewis"]
[Black "Garv Gaur"]
[WhiteFideId "410551"]
[BlackFideId "45030839"]
[WhiteElo "2306"]
[BlackElo "2551"]
[Result "0-1"]
[Round "3"]
[TimeControl "180+2"]
[Date "2023.07.18"]
[WhiteClock "0:00:11"]
[BlackClock "0:00:04"]
[Board "137"]

1. e4 {[%clk 0:03:00]}  g6 {[%clk 0:02:56]} 2. d4 {[%clk 0:02:59]}  c6 {[%clk 0:02:56]} 3. Nf3 {[%clk 0:02:59]}  d5 {[%clk 0:02:55]} 4. Nc3 {[%clk 0:02:58]}  Bg7 {[%clk 0:02:54]} 5. e5 {[%clk 0:02:56]}  Bg4 {[%clk 0:02:54]} 6. Be3 {[%clk 0:02:51]}  e6 {[%clk 0:02:52]} 7. h3 {[%clk 0:02:50]}  Bxf3 {[%clk 0:02:51]} 8. Qxf3 {[%clk 0:02:51]}  Qb6 {[%clk 0:02:49]} 9. O-O-O {[%clk 0:02:47]}  Ne7 {[%clk 0:02:48]} 10. g4 {[%clk 0:02:42]}  Nd7 {[%clk 0:02:48]} 11. Qe2 {[%clk 0:02:31]}  a6 {[%clk 0:02:47]} 12. f4 {[%clk 0:02:30]}  h5 {[%clk 0:02:42]} 13. Bg2 {[%clk 0:02:09]}  Rc8 {[%clk 0:02:30]} 14. Rhf1 {[%clk 0:02:04]}  Qa5 {[%clk 0:02:20]} 15. Kb1 {[%clk 0:02:03]}  b5 {[%clk 0:02:17]} 16. a3 {[%clk 0:01:58]}  b4 {[%clk 0:02:15]} 17. axb4 {[%clk 0:01:57]}  Qxb4 {[%clk 0:02:16]} 18. Na2 {[%clk 0:01:47]}  Qb7 {[%clk 0:02:11]} 19. Rd3 {[%clk 0:01:46]}  Nb6 {[%clk 0:02:06]} 20. Rb3 {[%clk 0:01:46]}  Qa7 {[%clk 0:02:05]} 21. Rc1 {[%clk 0:01:31]}  Nc4 {[%clk 0:02:05]} 22. Bf1 {[%clk 0:01:28]}  hxg4 {[%clk 0:01:51]} 23. hxg4 {[%clk 0:01:28]}  a5 {[%clk 0:01:44]} 24. Qf2 {[%clk 0:01:21]}  Nxe3 {[%clk 0:01:42]} 25. Qxe3 {[%clk 0:01:19]}  Kd7 {[%clk 0:01:29]} 26. Nc3 {[%clk 0:01:17]}  Rb8 {[%clk 0:01:13]} 27. Na4 {[%clk 0:01:16]}  Rb4 {[%clk 0:01:06]} 28. Nc5+ {[%clk 0:01:14]}  Kd8 {[%clk 0:01:03]} 29. Qc3 {[%clk 0:01:09]}  Nc8 {[%clk 0:00:54]} 30. Rxb4 {[%clk 0:01:06]}  axb4 {[%clk 0:00:54]} 31. Qxb4 {[%clk 0:01:07]}  Bf8 {[%clk 0:00:55]} 32. Qa5+ {[%clk 0:00:57]}  Qxa5 {[%clk 0:00:53]} 33. Nb7+ {[%clk 0:00:57]}  Kc7 {[%clk 0:00:54]} 34. Nxa5 {[%clk 0:00:58]}  Rh4 {[%clk 0:00:48]} 35. Be2 {[%clk 0:00:57]}  Rh2 {[%clk 0:00:48]} 36. Bd1 {[%clk 0:00:54]}  Nb6 {[%clk 0:00:27]} 37. c4 {[%clk 0:00:52]}  Bb4 {[%clk 0:00:26]} 38. cxd5 {[%clk 0:00:34]}  Bxa5 {[%clk 0:00:26]} 39. Rxc6+ {[%clk 0:00:34]}  Kd7 {[%clk 0:00:20]} 40. Rd6+ {[%clk 0:00:31]}  Ke7 {[%clk 0:00:21]} 41. dxe6 {[%clk 0:00:30]}  fxe6 {[%clk 0:00:22]} 42. Bb3 {[%clk 0:00:28]}  Nd5 {[%clk 0:00:06]} 43. f5 {[%clk 0:00:28]}  gxf5 {[%clk 0:00:06]} 44. gxf5 {[%clk 0:00:28]}  Rh1+ {[%clk 0:00:06]} 45. Ka2 {[%clk 0:00:28]}  Nb4+ {[%clk 0:00:06]} 46. Ka3 {[%clk 0:00:28]}  Ra1+ {[%clk 0:00:06]} 47. Ba2 {[%clk 0:00:28]}  Rxa2+ {[%clk 0:00:07]} 48. Kb3 {[%clk 0:00:29]}  exf5 {[%clk 0:00:07]} 49. Rf6 {[%clk 0:00:26]}  Ra1 {[%clk 0:00:07]} 50. Rxf5 {[%clk 0:00:26]}  Nc6 {[%clk 0:00:07]} 51. Rf4 {[%clk 0:00:23]}  Rd1 {[%clk 0:00:07]} 52. Ka4 {[%clk 0:00:22]}  Bc7 {[%clk 0:00:05]} 53. Kb5 {[%clk 0:00:20]}  Nxd4+ {[%clk 0:00:05]} 54. Kc5 {[%clk 0:00:19]}  Bxe5 {[%clk 0:00:06]} 55. Re4 {[%clk 0:00:20]}  Ke6 {[%clk 0:00:07]} 56. b4 {[%clk 0:00:19]}  Rc1+ {[%clk 0:00:07]} 57. Kb6 {[%clk 0:00:19]}  Kd5 {[%clk 0:00:08]} 58. Rh4 {[%clk 0:00:19]}  Rc6+ {[%clk 0:00:08]} 59. Ka7 {[%clk 0:00:19]}  Nb5+ {[%clk 0:00:08]} 60. Ka8 {[%clk 0:00:18]}  Rc8+ {[%clk 0:00:07]} 61. Kb7 {[%clk 0:00:18]}  Rb8+ {[%clk 0:00:07]} 62. Ka6 {[%clk 0:00:19]}  Nc7+ {[%clk 0:00:07]} 63. Ka7 {[%clk 0:00:19]}  Rd8 {[%clk 0:00:04]} 64. Rh7 {[%clk 0:00:18]}  Nb5+ {[%clk 0:00:04]} 65. Ka6 {[%clk 0:00:18]}  Rb8 {[%clk 0:00:03]} 66. Rd7+ {[%clk 0:00:16]}  Kc6 {[%clk 0:00:04]} 67. Rb7 {[%clk 0:00:13]}  Rxb7 {[%clk 0:00:04]} 68. Ka5 {[%clk 0:00:11]}  Ra7# {[%clk 0:00:04]} 0-1


[Site "https://www.chess.com"]

[Event "Titled Tuesday Blitz July 18 Early 2023"]
[White "robertoalejandro10"]
[Black "Mikhaylova, Irina"]
[BlackFideId "4109040"]
[WhiteElo "2551"]
[BlackElo "2292"]
[Result "1-0"]
[Round "3"]
[TimeControl "180+2"]
[Date "2023.07.18"]
[WhiteClock "0:00:14"]
[BlackClock "0:00:03"]
[Board "138"]

1. Nf3 {[%clk 0:03:00]}  Nf6 {[%clk 0:02:59]} 2. b3 {[%clk 0:03:00]}  g6 {[%clk 0:03:00]} 3. Bb2 {[%clk 0:03:00]}  Bg7 {[%clk 0:03:00]} 4. g3 {[%clk 0:02:57]}  O-O {[%clk 0:03:00]} 5. Bg2 {[%clk 0:02:57]}  d5 {[%clk 0:03:00]} 6. O-O {[%clk 0:02:56]}  c5 {[%clk 0:03:00]} 7. e3 {[%clk 0:02:54]}  Nc6 {[%clk 0:02:58]} 8. Qe2 {[%clk 0:02:52]}  d4 {[%clk 0:02:47]} 9. exd4 {[%clk 0:02:50]}  cxd4 {[%clk 0:02:47]} 10. Na3 {[%clk 0:02:47]}  Re8 {[%clk 0:02:20]} 11. Nc4 {[%clk 0:02:20]}  e5 {[%clk 0:02:17]} 12. Ncxe5 {[%clk 0:01:44]}  Nxe5 {[%clk 0:02:06]} 13. Nxe5 {[%clk 0:01:43]}  Ng4 {[%clk 0:01:42]} 14. f4 {[%clk 0:01:41]}  Nxe5 {[%clk 0:01:27]} 15. fxe5 {[%clk 0:01:40]}  Bxe5 {[%clk 0:00:58]} 16. Qf2 {[%clk 0:01:19]}  f6 {[%clk 0:00:19]} 17. c3 {[%clk 0:01:03]}  dxc3 {[%clk 0:00:17]} 18. Bxc3 {[%clk 0:01:04]}  Bf5 {[%clk 0:00:13]} 19. Bxb7 {[%clk 0:00:55]}  Rb8 {[%clk 0:00:13]} 20. Bg2 {[%clk 0:00:54]}  Bxc3 {[%clk 0:00:11]} 21. dxc3 {[%clk 0:00:55]}  Be4 {[%clk 0:00:11]} 22. Qxf6 {[%clk 0:00:42]}  Qxf6 {[%clk 0:00:10]} 23. Rxf6 {[%clk 0:00:42]}  Bxg2 {[%clk 0:00:11]} 24. Kxg2 {[%clk 0:00:43]}  Rbd8 {[%clk 0:00:11]} 25. Rf2 {[%clk 0:00:41]}  Rd3 {[%clk 0:00:11]} 26. Rc1 {[%clk 0:00:41]}  a5 {[%clk 0:00:12]} 27. c4 {[%clk 0:00:41]}  Rc8 {[%clk 0:00:12]} 28. c5 {[%clk 0:00:35]}  Rd5 {[%clk 0:00:10]} 29. c6 {[%clk 0:00:32]}  Rc7 {[%clk 0:00:11]} 30. Rfc2 {[%clk 0:00:31]}  Rd6 {[%clk 0:00:11]} 31. Rc5 {[%clk 0:00:30]}  Kf7 {[%clk 0:00:11]} 32. a3 {[%clk 0:00:22]}  Ke6 {[%clk 0:00:11]} 33. b4 {[%clk 0:00:22]}  axb4 {[%clk 0:00:11]} 34. axb4 {[%clk 0:00:23]}  Rd2+ {[%clk 0:00:12]} 35. Kh3 {[%clk 0:00:21]}  Kd6 {[%clk 0:00:11]} 36. b5 {[%clk 0:00:20]}  Rd5 {[%clk 0:00:08]} 37. Rxd5+ {[%clk 0:00:17]}  Kxd5 {[%clk 0:00:09]} 38. Rb1 {[%clk 0:00:15]}  Kc5 {[%clk 0:00:08]} 39. b6 {[%clk 0:00:14]}  Rxc6 {[%clk 0:00:04]} 40. b7 {[%clk 0:00:14]}  Kd6 {[%clk 0:00:03]} 41. b8=Q+ {[%clk 0:00:14]} 1-0


[Site "https://www.chess.com"]

[Event "Titled Tuesday Blitz July 18 Early 2023"]
[White "Barwinska, Ewa"]
[Black "Guliev, Logman"]
[WhiteFideId "21833761"]
[BlackFideId "13400061"]
[WhiteElo "2286"]
[BlackElo "2550"]
[Result "0-1"]
[Round "3"]
[TimeControl "180+2"]
[Date "2023.07.18"]
[WhiteClock "0:00:03"]
[BlackClock "0:00:13"]
[Board "139"]

1. e4 {[%clk 0:03:00]}  c5 {[%clk 0:02:58]} 2. Nf3 {[%clk 0:02:59]}  d6 {[%clk 0:02:58]} 3. d4 {[%clk 0:02:59]}  cxd4 {[%clk 0:02:57]} 4. Nxd4 {[%clk 0:03:00]}  Nf6 {[%clk 0:02:57]} 5. Nc3 {[%clk 0:03:00]}  Nc6 {[%clk 0:02:57]} 6. Bg5 {[%clk 0:02:47]}  e6 {[%clk 0:02:57]} 7. Qd2 {[%clk 0:02:38]}  Be7 {[%clk 0:02:56]} 8. O-O-O {[%clk 0:02:33]}  Nxd4 {[%clk 0:02:55]} 9. Qxd4 {[%clk 0:02:28]}  O-O {[%clk 0:02:55]} 10. Bxf6 {[%clk 0:02:21]}  Bxf6 {[%clk 0:02:54]} 11. Qxd6 {[%clk 0:02:17]}  Qa5 {[%clk 0:02:54]} 12. Qg3 {[%clk 0:01:30]}  Bxc3 {[%clk 0:02:28]} 13. bxc3 {[%clk 0:01:29]}  Qxa2 {[%clk 0:02:26]} 14. Bd3 {[%clk 0:01:29]}  Qa5 {[%clk 0:02:15]} 15. Kd2 {[%clk 0:01:26]}  e5 {[%clk 0:02:15]} 16. Ra1 {[%clk 0:01:21]}  Qc5 {[%clk 0:02:13]} 17. Rhb1 {[%clk 0:01:14]}  a6 {[%clk 0:02:01]} 18. Rb4 {[%clk 0:00:50]}  Be6 {[%clk 0:01:48]} 19. Qe3 {[%clk 0:00:31]}  Qe7 {[%clk 0:01:41]} 20. Qb6 {[%clk 0:00:23]}  Qg5+ {[%clk 0:01:37]} 21. Qe3 {[%clk 0:00:20]}  Qxg2 {[%clk 0:01:35]} 22. Rxb7 {[%clk 0:00:21]}  Qxh2 {[%clk 0:01:32]} 23. Rxa6 {[%clk 0:00:20]}  Rxa6 {[%clk 0:01:29]} 24. Bxa6 {[%clk 0:00:20]}  h5 {[%clk 0:01:11]} 25. Rb1 {[%clk 0:00:15]}  h4 {[%clk 0:01:11]} 26. Bd3 {[%clk 0:00:10]}  h3 {[%clk 0:01:06]} 27. Qf3 {[%clk 0:00:10]}  Qf4+ {[%clk 0:00:48]} 28. Qxf4 {[%clk 0:00:10]}  exf4 {[%clk 0:00:48]} 29. Ke2 {[%clk 0:00:10]}  g5 {[%clk 0:00:45]} 30. f3 {[%clk 0:00:09]}  Kg7 {[%clk 0:00:40]} 31. Rh1 {[%clk 0:00:09]}  Kf6 {[%clk 0:00:26]} 32. c4 {[%clk 0:00:07]}  Ke5 {[%clk 0:00:26]} 33. Kd2 {[%clk 0:00:04]}  Kd4 {[%clk 0:00:21]} 34. c3+ {[%clk 0:00:04]}  Ke5 {[%clk 0:00:21]} 35. Kc2 {[%clk 0:00:02]}  Ra8 {[%clk 0:00:20]} 36. Kb3 {[%clk 0:00:02]}  Rd8 {[%clk 0:00:20]} 37. Bf1 {[%clk 0:00:02]}  Rd2 {[%clk 0:00:19]} 38. Bxh3 {[%clk 0:00:02]}  Bxh3 {[%clk 0:00:15]} 39. Rxh3 {[%clk 0:00:02]}  g4 {[%clk 0:00:15]} 40. fxg4 {[%clk 0:00:02]}  Kxe4 {[%clk 0:00:16]} 41. Rh7 {[%clk 0:00:03]}  Rd7 {[%clk 0:00:15]} 42. g5 {[%clk 0:00:03]}  f3 {[%clk 0:00:15]} 43. g6 {[%clk 0:00:04]}  f2 {[%clk 0:00:13]} 44. g7 {[%clk 0:00:03]}  f1=Q {[%clk 0:00:12]} 45. g8=Q {[%clk 0:00:03]}  Qb1+ {[%clk 0:00:12]} 46. Ka4 {[%clk 0:00:03]}  Ra7# {[%clk 0:00:13]} 0-1


[Site "https://www.chess.com"]

[Event "Titled Tuesday Blitz July 18 Early 2023"]
[White "Arencibia Monduy, Antonio"]
[Black "Nugumanov, Bakhtiyar"]
[WhiteFideId "3507939"]
[BlackFideId "13701797"]
[WhiteElo "2550"]
[BlackElo "2274"]
[Result "1-0"]
[Round "3"]
[TimeControl "180+2"]
[Date "2023.07.18"]
[WhiteClock "0:00:15"]
[BlackClock "0:00:00"]
[Board "140"]

1. e4 {[%clk 0:03:00]}  d6 {[%clk 0:03:00]} 2. Nf3 {[%clk 0:03:00]}  Nf6 {[%clk 0:03:00]} 3. Nc3 {[%clk 0:03:01]}  g6 {[%clk 0:03:00]} 4. d4 {[%clk 0:03:00]}  Bg7 {[%clk 0:03:00]} 5. h3 {[%clk 0:03:00]}  e6 {[%clk 0:02:54]} 6. Bg5 {[%clk 0:02:58]}  h6 {[%clk 0:02:30]} 7. Be3 {[%clk 0:02:58]}  Nbd7 {[%clk 0:02:00]} 8. Qd2 {[%clk 0:02:55]}  a6 {[%clk 0:01:39]} 9. Rd1 {[%clk 0:02:36]}  Qe7 {[%clk 0:01:33]} 10. e5 {[%clk 0:02:17]}  Nd5 {[%clk 0:01:33]} 11. Nxd5 {[%clk 0:02:06]}  exd5 {[%clk 0:01:32]} 12. exd6 {[%clk 0:02:06]}  Qxd6 {[%clk 0:01:25]} 13. Bd3 {[%clk 0:01:53]}  h5 {[%clk 0:01:14]} 14. O-O {[%clk 0:01:51]}  O-O {[%clk 0:01:15]} 15. Bf4 {[%clk 0:01:47]}  Qc6 {[%clk 0:01:13]} 16. Rfe1 {[%clk 0:01:39]}  Nf6 {[%clk 0:01:06]} 17. Ne5 {[%clk 0:01:39]}  Qb6 {[%clk 0:01:07]} 18. c3 {[%clk 0:01:38]}  Be6 {[%clk 0:01:06]} 19. Qc2 {[%clk 0:01:26]}  Ne4 {[%clk 0:01:02]} 20. f3 {[%clk 0:01:17]}  Nf6 {[%clk 0:00:34]} 21. Re2 {[%clk 0:01:10]}  Rae8 {[%clk 0:00:32]} 22. Rde1 {[%clk 0:01:10]}  Bc8 {[%clk 0:00:26]} 23. b4 {[%clk 0:01:07]}  Nh7 {[%clk 0:00:14]} 24. Nxf7 {[%clk 0:00:56]}  Rxe2 {[%clk 0:00:13]} 25. Rxe2 {[%clk 0:00:57]}  Rxf7 {[%clk 0:00:13]} 26. Bxg6 {[%clk 0:00:50]}  Rxf4 {[%clk 0:00:13]} 27. Bxh7+ {[%clk 0:00:49]}  Kh8 {[%clk 0:00:13]} 28. Qd2 {[%clk 0:00:20]}  Rf8 {[%clk 0:00:10]} 29. Bc2 {[%clk 0:00:21]}  Qh6 {[%clk 0:00:09]} 30. Qd3 {[%clk 0:00:20]}  c6 {[%clk 0:00:00]} 31. Re7 {[%clk 0:00:15]} 1-0


[Site "https://www.chess.com"]

[Event "Titled Tuesday Blitz July 18 Early 2023"]
[White "rikchessmx"]
[Black "Ezat, Mohamed"]
[BlackFideId "10600906"]
[WhiteElo "2264"]
[BlackElo "2543"]
[Result "0-1"]
[Round "3"]
[TimeControl "180+2"]
[Date "2023.07.18"]
[WhiteClock "0:00:03"]
[BlackClock "0:00:16"]
[Board "141"]

1. e4 {[%clk 0:03:00]}  c6 {[%clk 0:02:58]} 2. d4 {[%clk 0:02:54]}  d5 {[%clk 0:02:59]} 3. Nc3 {[%clk 0:02:54]}  dxe4 {[%clk 0:02:57]} 4. Nxe4 {[%clk 0:02:54]}  Nf6 {[%clk 0:02:57]} 5. Ng5 {[%clk 0:02:52]}  h6 {[%clk 0:02:52]} 6. N5f3 {[%clk 0:02:16]}  Bg4 {[%clk 0:02:50]} 7. Bd3 {[%clk 0:02:17]}  e6 {[%clk 0:02:49]} 8. h3 {[%clk 0:02:16]}  Bxf3 {[%clk 0:02:46]} 9. Nxf3 {[%clk 0:02:17]}  Nbd7 {[%clk 0:02:42]} 10. Qe2 {[%clk 0:02:17]}  Bd6 {[%clk 0:02:42]} 11. Bd2 {[%clk 0:02:16]}  Qc7 {[%clk 0:02:42]} 12. g3 {[%clk 0:02:14]}  a6 {[%clk 0:02:41]} 13. c4 {[%clk 0:02:12]}  O-O {[%clk 0:02:32]} 14. O-O-O {[%clk 0:02:07]}  c5 {[%clk 0:02:31]} 15. g4 {[%clk 0:02:06]}  Bf4 {[%clk 0:02:03]} 16. Kb1 {[%clk 0:02:03]}  cxd4 {[%clk 0:02:02]} 17. Nxd4 {[%clk 0:01:58]}  Nc5 {[%clk 0:01:57]} 18. Bc2 {[%clk 0:01:58]}  Rfd8 {[%clk 0:01:55]} 19. Bc3 {[%clk 0:01:57]}  b5 {[%clk 0:01:46]} 20. cxb5 {[%clk 0:01:56]}  Nd5 {[%clk 0:01:43]} 21. Nc6 {[%clk 0:01:41]}  Nxc3+ {[%clk 0:01:43]} 22. bxc3 {[%clk 0:01:41]}  Rxd1+ {[%clk 0:01:43]} 23. Rxd1 {[%clk 0:01:37]}  axb5 {[%clk 0:01:43]} 24. Nb4 {[%clk 0:01:35]}  Be5 {[%clk 0:01:37]} 25. Qf3 {[%clk 0:01:25]}  Rc8 {[%clk 0:01:09]} 26. Rc1 {[%clk 0:01:12]}  Bf6 {[%clk 0:01:05]} 27. Qg3 {[%clk 0:00:40]}  Qxg3 {[%clk 0:00:58]} 28. fxg3 {[%clk 0:00:40]}  Bxc3 {[%clk 0:00:53]} 29. Bh7+ {[%clk 0:00:38]}  Kxh7 {[%clk 0:00:53]} 30. Rxc3 {[%clk 0:00:38]}  Rc7 {[%clk 0:00:54]} 31. h4 {[%clk 0:00:22]}  Na6 {[%clk 0:00:48]} 32. Rb3 {[%clk 0:00:21]}  Nxb4 {[%clk 0:00:44]} 33. Rxb4 {[%clk 0:00:21]}  Rc5 {[%clk 0:00:35]} 34. Kb2 {[%clk 0:00:20]}  Kg6 {[%clk 0:00:34]} 35. Kb3 {[%clk 0:00:20]}  Kf6 {[%clk 0:00:34]} 36. Rf4+ {[%clk 0:00:19]}  Ke7 {[%clk 0:00:34]} 37. Kb4 {[%clk 0:00:19]}  Rd5 {[%clk 0:00:33]} 38. Re4 {[%clk 0:00:15]}  e5 {[%clk 0:00:32]} 39. Re3 {[%clk 0:00:14]}  Kd6 {[%clk 0:00:31]} 40. Rc3 {[%clk 0:00:14]}  g6 {[%clk 0:00:28]} 41. Rc8 {[%clk 0:00:13]}  Rd4+ {[%clk 0:00:28]} 42. Kxb5 {[%clk 0:00:12]}  Rxg4 {[%clk 0:00:29]} 43. a4 {[%clk 0:00:12]}  Rxg3 {[%clk 0:00:28]} 44. a5 {[%clk 0:00:12]}  Rb3+ {[%clk 0:00:29]} 45. Ka4 {[%clk 0:00:12]}  Rb1 {[%clk 0:00:29]} 46. a6 {[%clk 0:00:11]}  Ra1+ {[%clk 0:00:29]} 47. Kb5 {[%clk 0:00:12]}  e4 {[%clk 0:00:25]} 48. Kb6 {[%clk 0:00:11]}  Rb1+ {[%clk 0:00:24]} 49. Ka5 {[%clk 0:00:11]}  f5 {[%clk 0:00:21]} 50. a7 {[%clk 0:00:11]}  Ra1+ {[%clk 0:00:21]} 51. Kb6 {[%clk 0:00:11]}  e3 {[%clk 0:00:21]} 52. a8=Q {[%clk 0:00:10]}  Rxa8 {[%clk 0:00:20]} 53. Rxa8 {[%clk 0:00:11]}  f4 {[%clk 0:00:20]} 54. Rd8+ {[%clk 0:00:10]}  Ke5 {[%clk 0:00:20]} 55. Kc5 {[%clk 0:00:10]}  Ke4 {[%clk 0:00:20]} 56. Re8+ {[%clk 0:00:09]}  Kf3 {[%clk 0:00:20]} 57. Kd4 {[%clk 0:00:09]}  Kf2 {[%clk 0:00:20]} 58. Ke4 {[%clk 0:00:08]}  g5 {[%clk 0:00:18]} 59. hxg5 {[%clk 0:00:08]}  hxg5 {[%clk 0:00:18]} 60. Kd3 {[%clk 0:00:08]}  g4 {[%clk 0:00:18]} 61. Re4 {[%clk 0:00:08]}  Kf3 {[%clk 0:00:17]} 62. Rd4 {[%clk 0:00:07]}  g3 {[%clk 0:00:17]} 63. Re4 {[%clk 0:00:07]}  g2 {[%clk 0:00:17]} 64. Re8 {[%clk 0:00:07]}  g1=Q {[%clk 0:00:17]} 65. Rxe3+ {[%clk 0:00:03]}  Qxe3+ {[%clk 0:00:16]} 0-1


[Site "https://www.chess.com"]